bitfinex-derivatives/quotes_BTCF0:USTF0_20240923
["timestamp","ask_amount","ask_price","bid_price","bid_amount"]
[1727052213601,0.13,63326.0,63324.0,0.078954]
[1727052213804,0.13,63326.0,63325.0,0.078953]
[1727052214700,0.13,63326.0,63322.0,0.06299525]
[1727052214901,0.078957,63322.0,63321.0,0.04514067]
[1727052215118,0.63826612,63322.0,63321.0,0.04514067]
[1727052215300,0.55930912,63322.0,63318.0,0.001]
[1727052215494,0.06850912,63321.0,63320.0,0.078959]
[1727052215694,0.07896,63320.0,63319.0,0.07896]
[1727052215902,0.14746912,63320.0,63319.0,0.07896]
[1727052218613,0.06850912,63320.0,63319.0,0.07996]
[1727052219299,0.06850912,63320.0,63319.0,0.001]
[1727052219300,0.06826346,63320.0,63319.0,0.001]
[1727052219602,0.06826346,63320.0,63319.0,0.079961]
[1727052219803,0.0426629,63320.0,63319.0,0.079961]
[1727052220007,0.10897005,63324.0,63323.0,0.078956]
[1727052221201,0.11197005,63324.0,63323.0,0.078956]
[1727052221408,0.18037153,63324.0,63323.0,0.078956]
[1727052221605,0.18537153,63324.0,63323.0,0.078956]
[1727052222113,0.18533134,63324.0,63323.0,0.078956]
[1727052222815,0.07636129,63324.0,63323.0,0.078956]
[1727052223009,0.008,63324.0,63323.0,0.14195125]
[1727052223311,0.008,63324.0,63323.0,0.078956]
[1727052226105,0.008,63324.0,63323.0,0.33599167]
[1727052226306,0.008,63324.0,63323.0,0.38719527]
[1727052226514,0.01496798,63326.0,63325.0,0.157906]
[1727052226712,0.00236977,63328.0,63327.0,0.078951]
[1727052226912,0.00236977,63328.0,63327.0,0.25701753]
[1727052227108,0.00236977,63328.0,63327.0,0.15773426]
[1727052227612,0.00236977,63328.0,63327.0,0.078951]
[1727052227814,0.00236977,63328.0,63327.0,0.15773426]
[1727052228209,0.00236977,63328.0,63327.0,0.078951]
[1727052228411,0.02447312,63328.0,63327.0,0.079951]
[1727052228615,0.02447312,63328.0,63327.0,0.080951]
[1727052228616,0.01636977,63328.0,63327.0,0.080951]
[1727052230912,0.03140128,63328.0,63327.0,0.080951]
[1727052231820,0.03140128,63328.0,63327.0,0.159902]
[1727052233612,0.01636977,63328.0,63327.0,0.289902]
[1727052233815,0.3608,63336.0,63335.0,0.157882]
[1727052234118,0.3608,63336.0,63335.0,0.287882]
[1727052234509,0.3608,63336.0,63335.0,0.208941]
[1727052234715,0.3608,63336.0,63335.0,0.078941]
[1727052235021,0.3738,63336.0,63335.0,0.080941]
[1727052238118,0.44286272,63336.0,63335.0,0.03694172]
[1727052240530,0.44251409,63336.0,63335.0,0.03694172]
[1727052241915,0.44251409,63336.0,63335.0,0.11588272]
[1727052242321,0.44251409,63336.0,63335.0,0.03694172]
[1727052243026,0.55148414,63336.0,63335.0,0.03694172]
[1727052243213,0.44251409,63336.0,63335.0,0.03694172]
[1727052245327,0.3738,63336.0,63335.0,0.03694172]
[1727052247634,0.3738,63336.0,63335.0,0.24588272]
[1727052247832,0.3738,63336.0,63335.0,0.16694172]
[1727052248045,0.3738,63336.0,63335.0,0.24588272]
[1727052248245,0.3738,63336.0,63335.0,0.16694172]
[1727052249640,0.3738,63336.0,63335.0,0.03694172]
[1727052253244,0.55151354,63336.0,63335.0,0.03694172]
[1727052253643,0.44254349,63336.0,63335.0,0.03694172]
[1727052253851,0.4926437,63336.0,63335.0,0.03694172]
[1727052257758,0.49278306,63336.0,63335.0,0.03694172]
[1727052260357,0.49278306,63336.0,63335.0,0.13627485]
[1727052260358,0.3738,63336.0,63335.0,0.13627485]
[1727052261460,0.3738,63336.0,63335.0,0.21521585]
[1727052261659,0.3738,63336.0,63335.0,0.34521585]
[1727052262156,0.3738,63336.0,63335.0,0.26627485]
[1727052262353,0.3738,63336.0,63335.0,0.34521585]
[1727052263148,0.3738,63336.0,63335.0,0.46369021]
[1727052263357,0.3738,63336.0,63335.0,0.34521585]
[1727052264754,0.3738,63336.0,63335.0,0.26627485]
[1727052265059,0.3738,63336.0,63335.0,0.21521585]
[1727052265652,0.013,63336.0,63335.0,0.21521585]
[1727052266561,0.013,63336.0,63335.0,0.13627485]
[1727052266760,0.17088,63336.0,63335.0,0.002]
[1727052266961,0.078941,63335.0,63332.0,0.07896367]
[1727052267153,0.13,63333.0,63324.0,0.09474291]
[1727052267353,0.800548,63329.0,63328.0,0.06317725]
[1727052267553,0.800548,63329.0,63319.0,0.3268]
[1727052267554,0.07895,63328.0,63327.0,0.06312572]
[1727052267749,0.7224,63329.0,63321.0,0.09474291]
[1727052267949,0.7216,63329.0,63321.0,0.09474291]
[1727052268260,0.7216,63329.0,63328.0,0.06310013]
[1727052268460,0.7216,63329.0,63328.0,0.06309953]
[1727052268762,0.7216,63329.0,63328.0,0.14204953]
[1727052268965,0.7216,63329.0,63328.0,0.07895]
[1727052269259,0.7216,63329.0,63328.0,0.14203381]
[1727052269768,0.3608,63329.0,63328.0,0.14203381]
[1727052270064,0.3608,63329.0,63328.0,0.14303381]
[1727052270555,0.3758395,63329.0,63328.0,0.14303381]
[1727052271459,0.3758395,63329.0,63328.0,0.07995]
[1727052275270,0.49700088,63329.0,63328.0,0.07995]
[1727052276776,0.44565814,63329.0,63328.0,0.07995]
[1727052279962,0.55497459,63329.0,63328.0,0.07995]
[1727052281267,0.55497459,63329.0,63328.0,0.07895]
[1727052281466,0.55497459,63329.0,63328.0,0.07995]
[1727052282275,0.55497459,63329.0,63328.0,0.07895]
[1727052283267,0.3758395,63329.0,63328.0,0.07895]
[1727052284466,0.3758395,63329.0,63328.0,0.14199887]
[1727052285079,0.3758395,63329.0,63328.0,0.14299887]
[1727052286974,0.3758395,63329.0,63328.0,0.07995]
[1727052289578,0.3758395,63329.0,63328.0,0.14299905]
[1727052289771,0.3758395,63329.0,63328.0,0.14299903]
[1727052289965,0.3758395,63329.0,63328.0,0.07995]
[1727052290167,0.44564885,63329.0,63328.0,0.07995]
[1727052293971,0.02559742,63329.0,63328.0,0.2389]
[1727052294274,0.3608,63340.0,63334.0,0.078942]
[1727052294275,0.10947483,63335.0,63334.0,0.078942]
[1727052294476,0.10947483,63337.0,63334.0,0.158942]
[1727052295387,0.10947483,63337.0,63336.0,0.15788]
[1727052295679,0.10948352,63343.0,63342.0,0.078932]
[1727052295881,0.3616,63345.0,63342.0,0.078932]
[1727052295882,0.47028352,63345.0,63343.0,0.1675]
[1727052296077,0.10948352,63347.0,63344.0,0.15893]
[1727052296279,0.10948352,63352.0,63351.0,0.078921]
[1727052296578,0.1362,63357.0,63353.0,0.078918]
[1727052296579,0.10948352,63354.0,63353.0,0.078918]
[1727052296778,0.1245274,63355.0,63354.0,0.078917]
[1727052296987,0.1362,63357.0,63356.0,0.078915]
[1727052297176,0.24559377,63357.0,63356.0,0.078915]
[1727052297376,0.1362,63357.0,63356.0,0.078915]
[1727052298176,0.1511432,63357.0,63356.0,0.12720134]
[1727052298488,0.1511432,63357.0,63356.0,0.079915]
[1727052298787,0.1551432,63357.0,63356.0,0.080915]
[1727052299977,0.004,63357.0,63356.0,0.52063]
[1727052300175,0.004,63357.0,63356.0,0.98283]
[1727052300885,0.3608,63365.0,63364.0,0.078905]
[1727052301093,0.3608,63365.0,63364.0,0.208905]
[1727052301294,0.3608,63373.0,63372.0,0.078895]
[1727052301473,0.13,63389.0,63372.0,0.208895]
[1727052301474,0.00771259,63382.0,63372.0,0.208895]
[1727052301681,0.3608,63384.0,63383.0,0.078881]
[1727052301878,0.3608,63384.0,63383.0,0.208881]
[1727052302483,0.3608,63384.0,63383.0,0.078881]
[1727052303997,0.3608,63384.0,63383.0,0.079881]
[1727052304490,0.3608,63384.0,63383.0,0.080881]
[1727052305081,1.56412,63384.0,63367.0,0.3268]
[1727052305394,1.56412,63384.0,63362.0,0.40791696]
[1727052305395,0.13,63374.0,63362.0,0.3608]
[1727052305690,0.3693798,63373.0,63372.0,0.078895]
[1727052305880,0.2264798,63373.0,63372.0,0.078895]
[1727052306393,0.22594298,63373.0,63372.0,0.078895]
[1727052306695,0.22594298,63373.0,63368.0,0.31709623]
[1727052306892,0.22594298,63373.0,63371.0,0.13]
[1727052307193,0.22594298,63373.0,63372.0,0.079895]
[1727052307891,0.0711708,63373.0,63372.0,0.078895]
[1727052308795,0.0721708,63373.0,63372.0,0.078895]
[1727052309088,1.1455708,63373.0,63362.0,0.078907]
[1727052309290,0.13,63363.0,63362.0,0.078907]
[1727052309594,0.4908,63366.0,63364.0,0.078904]
[1727052310392,0.3608,63366.0,63365.0,0.078903]
[1727052310580,0.0701708,63373.0,63372.0,0.078895]
[1727052311381,0.08532437,63373.0,63372.0,0.078895]
[1727052312094,0.08632437,63373.0,63372.0,0.078895]
[1727052312289,0.08632437,63373.0,63371.0,0.13]
[1727052312290,0.24891637,63373.0,63367.0,0.3608]
[1727052312488,0.3608,63368.0,63366.0,0.078902]
[1727052312691,0.3608,63368.0,63362.0,0.078906]
[1727052312885,0.13,63364.0,63362.0,0.078906]
[1727052313090,0.13,63364.0,63363.0,0.078906]
[1727052313597,0.13,63364.0,63353.0,0.13]
[1727052313598,0.4603,63367.0,63366.0,0.078902]
[1727052313800,0.4595,63367.0,63366.0,0.078902]
[1727052315899,0.4605,63367.0,63366.0,0.078902]
[1727052318307,0.078903,63366.0,63362.0,0.078907]
[1727052318494,0.078903,63366.0,63357.0,0.13]
[1727052319794,0.078903,63366.0,63362.0,0.003]
[1727052320404,0.078903,63366.0,63362.0,0.004]
[1727052320797,0.078903,63366.0,63365.0,0.078903]
[1727052321307,0.4603,63367.0,63366.0,0.078902]
[1727052321308,0.145,63367.0,63366.0,0.078902]
[1727052321508,0.1442,63367.0,63366.0,0.078902]
[1727052322595,0.3608,63368.0,63367.0,0.078901]
[1727052322798,0.37572304,63368.0,63367.0,0.078901]
[1727052324302,0.37672304,63368.0,63367.0,0.078901]
[1727052324509,0.37772304,63368.0,63367.0,0.078901]
[1727052325003,0.3628,63368.0,63367.0,0.157802]
[1727052325399,0.002,63368.0,63367.0,0.58109426]
[1727052325794,0.002,63368.0,63367.0,0.518602]
[1727052325995,0.0037,63382.0,63379.0,0.078886]
[1727052326213,0.3608,63385.0,63379.0,0.13]
[1727052326396,0.37594217,63385.0,63379.0,0.13]
[1727052326596,0.37594217,63385.0,63379.0,0.17714988]
[1727052326795,0.37594217,63385.0,63379.0,0.13]
[1727052327001,0.37594217,63385.0,63380.0,0.1435]
[1727052327201,0.3608,63385.0,63384.0,0.07888]
[1727052327496,0.3618,63385.0,63384.0,0.07888]
[1727052327907,0.58576258,63385.0,63380.0,0.01000486]
[1727052328110,0.20264753,63381.0,63380.0,0.01000486]
[1727052328309,0.42661011,63381.0,63380.0,0.01000486]
[1727052328506,0.42661011,63381.0,63380.0,0.08888986]
[1727052328896,0.16249532,63381.0,63380.0,0.08888986]
[1727052329109,0.16249532,63381.0,63380.0,0.12598418]
[1727052329510,0.06146726,63384.0,63383.0,0.078881]
[1727052329808,0.21817604,63384.0,63383.0,0.208881]
[1727052330394,0.21817604,63384.0,63383.0,0.287762]
[1727052330602,0.21817604,63384.0,63383.0,0.288762]
[1727052330831,0.20264753,63386.0,63385.0,0.157758]
[1727052330998,0.05200432,63400.0,63395.0,0.078866]
[1727052330999,0.06146726,63396.0,63395.0,0.078866]
[1727052331198,0.05140432,63400.0,63398.0,0.078862]
[1727052331199,0.06146726,63399.0,63398.0,0.078862]
[1727052332110,0.12422858,63400.0,63399.0,0.078861]
[1727052333309,0.10917158,63400.0,63399.0,0.078861]
[1727052333912,0.10917158,63400.0,63399.0,0.079861]
[1727052334113,0.07887,63392.0,63381.0,0.078882]
[1727052334311,0.3608,63382.0,63381.0,0.078882]
[1727052334514,0.3608,63382.0,63374.0,0.1566]
[1727052334713,0.42226726,63382.0,63374.0,0.1566]
[1727052334911,0.09340243,63377.0,63374.0,0.1566]
[1727052335212,0.3608,63382.0,63381.0,0.078884]
[1727052335710,0.3608,63382.0,63381.0,0.081884]
[1727052336215,0.3608,63382.0,63381.0,0.085884]
[1727052336606,0.09341777,63383.0,63382.0,0.078882]
[1727052336800,0.09341777,63385.0,63382.0,0.208882]
[1727052337011,0.09342486,63385.0,63384.0,0.20888]
[1727052337316,0.3608,63391.0,63390.0,0.078872]
[1727052339415,0.3618,63391.0,63390.0,0.078872]
[1727052340018,0.3628,63391.0,63390.0,0.078872]
[1727052341625,0.39820798,63391.0,63390.0,0.078872]
[1727052342010,0.3628,63391.0,63390.0,0.078872]
[1727052343420,0.3628,63391.0,63390.0,0.208872]
[1727052344114,0.3628,63391.0,63390.0,0.368372]
[1727052344316,0.3628,63391.0,63390.0,0.447244]
[1727052344821,0.3628,63391.0,63390.0,0.368372]
[1727052346217,0.3628,63391.0,63390.0,0.447244]
[1727052346428,0.3628,63391.0,63390.0,1.360156]
[1727052346429,0.002,63391.0,63390.0,1.360156]
[1727052346631,0.002,63391.0,63390.0,1.281284]
[1727052346928,0.002,63391.0,63390.0,0.808044]
[1727052350129,0.321346,63397.0,63396.0,0.078865]
[1727052351633,0.321346,63397.0,63396.0,0.079865]
[1727052352332,0.321346,63397.0,63396.0,0.080865]
[1727052354135,0.321346,63397.0,63396.0,0.15936935]
[1727052354331,0.321346,63397.0,63396.0,0.080865]
[1727052355440,0.321346,63397.0,63396.0,0.18592346]
[1727052355630,0.321346,63397.0,63396.0,0.26462031]
[1727052355936,0.04770432,63400.0,63399.0,0.078861]
[1727052357835,0.04770432,63400.0,63399.0,0.079861]
[1727052358841,0.04770432,63400.0,63399.0,0.080861]
[1727052359747,0.25656432,63400.0,63396.0,0.07869685]
[1727052359933,0.25656432,63400.0,63383.0,0.10569312]
[1727052359934,0.078865,63396.0,63390.0,0.09373839]
[1727052360245,0.4908,63391.0,63385.0,0.09373839]
[1727052360537,0.4908,63391.0,63386.0,0.10499552]
[1727052360538,0.078876,63387.0,63386.0,0.10499552]
[1727052360742,0.20888,63384.0,63383.0,0.02681212]
[1727052360944,0.56968,63384.0,63383.0,0.10569312]
[1727052361245,0.43968,63384.0,63383.0,0.10569312]
[1727052361942,0.3608,63384.0,63383.0,0.10769312]
[1727052362745,0.3608,63384.0,63383.0,0.10869312]
[1727052363242,0.4981,63384.0,63383.0,0.10869312]
[1727052363855,0.51298953,63384.0,63383.0,0.10869312]
[1727052364347,0.51298953,63384.0,63383.0,0.081881]
[1727052364648,0.3608,63384.0,63383.0,0.211881]
[1727052365045,0.3608,63384.0,63383.0,1.39023366]
[1727052365347,0.3608,63384.0,63383.0,0.39579466]
[1727052366555,0.1358,63395.0,63394.0,0.078867]
[1727052366755,0.1358,63395.0,63394.0,0.14184035]
[1727052367649,0.1368,63395.0,63394.0,0.14284035]
[1727052368344,0.15150541,63395.0,63394.0,0.079867]
[1727052368752,0.15250541,63395.0,63394.0,0.080867]
[1727052368935,0.01670541,63395.0,63394.0,0.080867]
[1727052369246,0.002,63395.0,63394.0,0.080867]
[1727052370244,0.002,63395.0,63394.0,0.18551068]
[1727052370747,0.002,63395.0,63394.0,0.080867]
[1727052370946,0.002,63395.0,63394.0,0.18551381]
[1727052371145,0.002,63395.0,63394.0,0.18551008]
[1727052371348,0.002,63395.0,63394.0,0.080867]
[1727052373054,0.002,63395.0,63394.0,0.18549636]
[1727052373840,0.002,63395.0,63394.0,0.002]
[1727052374137,0.002,63395.0,63392.0,0.04723166]
[1727052374341,0.13,63393.0,63392.0,0.04723166]
[1727052374542,0.07887,63392.0,63391.0,0.04723166]
[1727052374742,0.40257,63392.0,63391.0,0.04723166]
[1727052375340,0.078871,63391.0,63390.0,0.04723166]
[1727052375656,0.078871,63391.0,63390.0,0.078872]
[1727052375859,0.3237,63392.0,63391.0,0.078871]
[1727052376052,0.3608,63393.0,63392.0,0.07887]
[1727052376352,0.3608,63393.0,63392.0,0.07987]
[1727052377058,0.3608,63393.0,63392.0,0.07887]
[1727052377945,0.3608,63393.0,63392.0,0.07987]
[1727052378145,0.4938,63393.0,63392.0,0.07987]
[1727052378347,0.574669,63393.0,63392.0,0.002]
[1727052378658,0.078872,63390.0,63389.0,0.04723136]
[1727052379047,0.078877,63386.0,63377.0,0.078888]
[1727052379251,0.4908,63379.0,63377.0,0.078888]
[1727052379659,0.569686,63379.0,63378.0,0.10569912]
[1727052380759,0.569686,63379.0,63378.0,0.11269912]
[1727052381761,0.4908,63379.0,63378.0,0.11869912]
[1727052382255,0.57768179,63379.0,63378.0,0.013]
[1727052382455,0.078895,63373.0,63369.0,0.078898]
[1727052382665,0.4908,63370.0,63369.0,0.078898]
[1727052384156,0.3608,63370.0,63369.0,0.078898]
[1727052384462,0.3608,63370.0,63369.0,0.080898]
[1727052385352,0.3608,63370.0,63369.0,0.084898]
[1727052385756,0.3608,63370.0,63369.0,0.082898]
[1727052385958,0.3608,63370.0,63369.0,0.083898]
[1727052386159,0.3608,63370.0,63369.0,0.213898]
[1727052386461,0.3608,63370.0,63369.0,0.083898]
[1727052387963,0.3608,63370.0,63369.0,0.162796]
[1727052388464,0.3608,63370.0,63369.0,0.157796]
[1727052388660,0.3608,63370.0,63369.0,0.166796]
[1727052389164,0.3618,63370.0,63369.0,0.302796]
[1727052389966,0.3628,63370.0,63369.0,0.307796]
[1727052390454,0.3628,63370.0,63369.0,0.621896]
[1727052391667,0.3608,63370.0,63369.0,0.601896]
[1727052391959,0.002,63370.0,63369.0,0.622896]
[1727052392362,0.002,63370.0,63369.0,0.70549784]
[1727052392363,0.001,63370.0,63369.0,0.70549784]
[1727052392556,0.002,63370.0,63369.0,0.70849784]
[1727052392758,0.3608,63379.0,63378.0,0.157774]
[1727052392967,0.3608,63379.0,63378.0,0.287774]
[1727052393559,0.3608,63379.0,63378.0,0.47020549]
[1727052393759,0.3608,63379.0,63378.0,0.3916198]
[1727052394767,0.3608,63379.0,63378.0,0.3966198]
[1727052395155,0.3608,63379.0,63378.0,0.48120094]
[1727052395765,0.3608,63391.0,63390.0,0.078872]
[1727052396363,0.3608,63391.0,63390.0,0.157744]
[1727052396565,0.1328,63399.0,63398.0,0.078862]
[1727052396758,0.14755798,63399.0,63398.0,0.078862]
[1727052396964,0.01475798,63399.0,63398.0,0.078862]
[1727052397174,0.04770432,63400.0,63399.0,0.078861]
[1727052398770,0.04770432,63400.0,63399.0,0.079861]
[1727052398771,0.05570432,63400.0,63399.0,0.079861]
[1727052399761,0.06270432,63400.0,63399.0,0.080861]
[1727052400362,0.06270432,63400.0,63399.0,0.159722]
[1727052401175,0.36072314,63401.0,63400.0,0.15772]
[1727052401357,0.35980314,63401.0,63400.0,0.15772]
[1727052401672,0.35980314,63401.0,63400.0,0.33898573]
[1727052402258,0.37580314,63401.0,63400.0,0.15972]
[1727052402473,0.37580314,63401.0,63400.0,0.23829596]
[1727052402775,0.37580314,63401.0,63400.0,0.34086818]
[1727052402975,0.35980314,63401.0,63400.0,0.23629596]
[1727052403275,0.36580314,63401.0,63400.0,0.15772]
[1727052404465,0.85660314,63401.0,63400.0,0.07886]
[1727052405473,0.72660314,63401.0,63400.0,0.07886]
[1727052408263,0.85660314,63401.0,63400.0,0.07886]
[1727052410576,0.72660314,63401.0,63400.0,0.07886]
[1727052412968,0.72660314,63401.0,63400.0,0.15772]
[1727052412969,0.36580314,63401.0,63400.0,0.15772]
[1727052413172,0.36580314,63401.0,63400.0,0.07886]
[1727052413366,0.36580314,63401.0,63400.0,0.15772]
[1727052415779,0.36580314,63401.0,63400.0,0.17269871]
[1727052416574,0.36580314,63401.0,63400.0,0.25155871]
[1727052416768,0.36580314,63401.0,63400.0,0.17269871]
[1727052416964,0.36580314,63401.0,63400.0,0.44279871]
[1727052417768,0.36580314,63401.0,63400.0,0.52165871]
[1727052420090,2.6e-07,63406.0,63405.0,0.236562]
[1727052420291,0.00328261,63416.0,63411.0,0.078846]
[1727052420583,5.8e-07,63418.0,63417.0,0.157678]
[1727052420879,5.8e-07,63418.0,63417.0,0.836517]
[1727052421076,7.2e-07,63419.0,63418.0,0.630716]
[1727052421476,7.2e-07,63419.0,63418.0,1.230716]
[1727052421685,1.1e-07,63420.0,63419.0,0.630712]
[1727052421873,1.1e-07,63420.0,63419.0,0.760712]
[1727052422072,1.1e-07,63420.0,63419.0,1.230712]
[1727052422276,1.1e-07,63420.0,63419.0,0.630712]
[1727052424088,5.7e-07,63423.0,63420.0,0.078835]
[1727052424291,5.4e-07,63425.0,63422.0,0.569633]
[1727052424590,4.5e-07,63426.0,63425.0,0.157658]
[1727052424883,4.5e-07,63426.0,63425.0,0.757658]
[1727052425081,4.5e-07,63426.0,63425.0,1.230658]
[1727052425286,0.02318253,63430.0,63425.0,1.230658]
[1727052425287,0.07815845,63428.0,63427.0,0.157652]
[1727052425480,4.5e-07,63428.0,63427.0,0.966478]
[1727052425687,4.5e-07,63428.0,63427.0,1.75012854]
[1727052425992,4.5e-07,63428.0,63427.0,1.67163237]
[1727052426206,9.8e-07,63430.0,63429.0,0.157648]
[1727052426484,8.7e-07,63433.0,63432.0,0.15764]
[1727052426688,8.7e-07,63433.0,63432.0,0.28764]
[1727052427074,1.3e-07,63436.0,63435.0,0.078816]
[1727052427277,0.05985498,63445.0,63435.0,1.06187793]
[1727052427581,0.05985498,63445.0,63444.0,0.569605]
[1727052427771,0.05985498,63445.0,63444.0,1.169605]
[1727052427975,0.05985498,63445.0,63444.0,1.642445]
[1727052428177,0.05985498,63445.0,63444.0,0.439605]
[1727052428787,0.05985498,63445.0,63444.0,0.440605]
[1727052429683,0.03360554,63446.0,63445.0,0.551644]
[1727052429887,5.4e-07,63446.0,63445.0,0.551644]
[1727052430084,5.4e-07,63446.0,63445.0,1.230448]
[1727052430384,9.5e-07,63455.0,63453.0,0.078794]
[1727052430589,9.5e-07,63455.0,63454.0,0.7404]
[1727052431087,9.5e-07,63455.0,63454.0,0.13]
[1727052431292,9.5e-07,63455.0,63453.0,0.078794]
[1727052431498,9.5e-07,63455.0,63454.0,0.13]
[1727052431805,9.5e-07,63455.0,63454.0,0.209793]
[1727052432482,9.5e-07,63455.0,63454.0,1.282553]
[1727052432887,9.5e-07,63455.0,63454.0,0.209793]
[1727052433388,9.5e-07,63455.0,63454.0,0.210793]
[1727052436395,9.5e-07,63455.0,63454.0,1.283553]
[1727052437390,9.5e-07,63455.0,63454.0,0.210793]
[1727052440292,0.01983462,63458.0,63457.0,0.157578]
[1727052440493,0.02537097,63462.0,63461.0,0.078784]
[1727052440689,0.02537097,63462.0,63461.0,0.648368]
[1727052440885,0.1077,63469.0,63466.0,0.157556]
[1727052441194,0.03484708,63476.0,63472.0,0.07877]
[1727052441195,0.02023388,63474.0,63472.0,0.07877]
[1727052441395,0.02023388,63474.0,63472.0,0.43957]
[1727052442197,0.02023388,63474.0,63466.0,0.078778]
[1727052442400,0.3608,63470.0,63461.0,0.20402079]
[1727052442702,0.4908,63464.0,63461.0,0.20402079]
[1727052442901,0.4908,63464.0,63461.0,0.03392079]
[1727052443103,0.3608,63464.0,63461.0,0.03392079]
[1727052443602,0.3608,63464.0,63462.0,0.078783]
[1727052444109,0.3608,63464.0,63463.0,0.13]
[1727052444310,0.1195,63469.0,63463.0,0.13]
[1727052444606,0.1195,63469.0,63468.0,0.13]
[1727052444996,0.1195,63469.0,63468.0,0.208775]
[1727052445386,0.3608,63470.0,63468.0,0.208775]
[1727052445387,0.3608,63470.0,63469.0,0.078774]
[1727052445595,0.2703,63472.0,63471.0,0.078772]
[1727052446101,0.1314,63472.0,63471.0,0.078772]
[1727052446498,0.1314,63472.0,63462.0,0.015]
[1727052446499,0.1314,63472.0,63462.0,0.008]
[1727052446703,0.078772,63471.0,63469.0,0.006]
[1727052447600,0.1314,63472.0,63471.0,0.003]
[1727052447806,0.1314,63472.0,63471.0,0.081772]
[1727052449000,0.1314,63472.0,63471.0,0.078772]
[1727052449795,0.1314,63472.0,63471.0,0.081772]
[1727052449995,0.1314,63472.0,63471.0,0.083772]
[1727052452603,0.1314,63472.0,63471.0,0.14606974]
[1727052452798,0.1314,63472.0,63471.0,0.083772]
[1727052453400,0.47268,63471.0,63470.0,0.06271032]
[1727052453706,0.9214,63472.0,63462.0,0.07810086]
[1727052453707,0.400971,63472.0,63462.0,0.07810086]
[1727052453897,0.3608,63464.0,63463.0,0.078782]
[1727052454317,0.210171,63472.0,63471.0,0.078772]
[1727052454318,0.1314,63472.0,63471.0,0.078772]
[1727052455897,0.1314,63472.0,63471.0,0.080772]
[1727052456611,0.15693998,63472.0,63471.0,0.080772]
[1727052456806,0.15694,63472.0,63471.0,0.080772]
[1727052457409,0.15694,63472.0,63471.0,0.081772]
[1727052458409,0.25039784,63472.0,63471.0,0.081772]
[1727052458605,0.15694,63472.0,63471.0,0.081772]
[1727052461105,0.51774,63472.0,63471.0,0.081772]
[1727052461710,0.15694,63472.0,63471.0,0.081772]
[1727052462419,0.15694,63472.0,63471.0,0.079772]
[1727052462613,0.15694,63472.0,63471.0,0.081772]
[1727052463411,0.1314,63472.0,63471.0,0.18211703]
[1727052464009,0.04264703,63473.0,63472.0,0.07877]
[1727052464327,0.04264703,63473.0,63472.0,0.17911503]
[1727052464522,0.04264703,63473.0,63472.0,0.27317657]
[1727052465209,0.04264703,63473.0,63472.0,0.27417657]
[1727052465813,0.02023388,63474.0,63473.0,0.078769]
[1727052466015,0.02023388,63474.0,63473.0,0.27350801]
[1727052466213,0.02023388,63474.0,63473.0,0.17911403]
[1727052466423,0.38103388,63474.0,63473.0,0.17911403]
[1727052467911,0.38103388,63474.0,63473.0,0.27350801]
[1727052468113,0.38103388,63474.0,63473.0,0.17911403]
[1727052468308,0.38103388,63474.0,63473.0,0.27350801]
[1727052468511,0.02023388,63474.0,63473.0,0.25788303]
[1727052468713,0.02023388,63474.0,63473.0,0.37682892]
[1727052469329,0.02023388,63474.0,63473.0,0.29805992]
[1727052469517,0.02023388,63474.0,63473.0,0.29813757]
[1727052469724,0.02023388,63474.0,63473.0,0.37690657]
[1727052469923,0.02744708,63476.0,63475.0,0.157534]
[1727052470105,0.02744708,63476.0,63475.0,0.50690257]
[1727052470311,0.02744708,63476.0,63475.0,0.94646957]
[1727052470509,0.1943977,63476.0,63475.0,0.72706196]
[1727052470721,0.14569788,63476.0,63475.0,0.72706196]
[1727052471223,0.14769788,63476.0,63475.0,0.72706196]
[1727052472417,0.18064369,63476.0,63475.0,0.72706196]
[1727052472620,0.273359,63476.0,63475.0,0.72706196]
[1727052473215,0.14769788,63476.0,63475.0,0.72706196]
[1727052473821,0.1806364,63476.0,63475.0,0.72706196]
[1727052474023,0.27335171,63476.0,63475.0,0.72706196]
[1727052474211,0.12115171,63476.0,63475.0,0.72706196]
[1727052474515,0.04981271,63476.0,63475.0,0.72706196]
[1727052475021,7.1e-07,63476.0,63475.0,1.79970196]
[1727052475218,0.03329306,63483.0,63482.0,0.078758]
[1727052475219,0.09253719,63483.0,63482.0,0.078758]
[1727052475515,0.03329306,63483.0,63482.0,0.439558]
[1727052476113,0.03329306,63483.0,63482.0,0.518316]
[1727052476311,6e-08,63483.0,63482.0,0.597074]
[1727052476713,0.15567072,63491.0,63490.0,0.157496]
[1727052476913,0.00092,63498.0,63491.0,1.07072]
[1727052477114,0.01314584,63508.0,63491.0,1.07072]
[1727052477115,0.00884584,63508.0,63497.0,0.4908]
[1727052477322,0.01465751,63507.0,63500.0,0.157472]
[1727052477521,0.01465751,63507.0,63505.0,0.07873]
[1727052477522,0.10974308,63506.0,63505.0,0.07873]
[1727052477715,0.10974663,63507.0,63506.0,0.208728]
[1727052477921,0.11859247,63508.0,63506.0,0.681128]
[1727052478119,0.11859247,63508.0,63506.0,0.208728]
[1727052478321,0.00884584,63508.0,63507.0,0.4724]
[1727052478533,0.03077878,63510.0,63508.0,0.078726]
[1727052478712,0.03077878,63510.0,63505.0,0.09441388]
[1727052478713,0.16077878,63510.0,63506.0,0.001]
[1727052479119,0.3608,63507.0,63493.0,0.07832929]
[1727052479322,0.1201,63509.0,63496.0,0.13]
[1727052479626,0.1201,63509.0,63501.0,0.13]
[1727052480012,0.3608,63504.0,63501.0,0.13]
[1727052480225,0.3608,63504.0,63492.0,0.20832929]
[1727052480412,0.3608,63504.0,63502.0,0.078732]
[1727052480816,0.3608,63504.0,63491.0,0.45521388]
[1727052480817,0.3608,63504.0,63497.0,0.078739]
[1727052481125,0.3608,63498.0,63491.0,0.3608]
[1727052481421,0.21060572,63497.0,63492.0,0.006]
[1727052481926,0.28934572,63497.0,63490.0,0.078747]
[1727052482224,0.3608,63492.0,63490.0,0.078747]
[1727052482723,0.0963,63496.0,63494.0,0.078743]
[1727052483023,0.11131242,63496.0,63494.0,0.078743]
[1727052483220,0.0963,63496.0,63494.0,0.078743]